{"text_format":"1","workbook":"xlsx","n_sheets":4,"sheets":["Sheet1","IvanC","Sheet2","Sheet3"],"not_rendered":{"charts":0,"images":0,"macros":1,"external_links":0,"defined_names":0,"comments":1,"pivot_tables":0},"unopened":[],"bounds":{"document_bytes":16777216,"sheet_cells":100000,"rows_first":2000,"rows_last":500,"rows_between":2000,"halvings":0,"cell_chars":16384,"cell_head_chars":4096},"cells_cut":0,"cells_raw":0,"read":"whole","date_system":"1900"}

{"sheet":"Sheet1","index":0,"n_rows":16,"n_cols":12,"rows_kept":16,"cut":false,"hidden":false,"merged":[[9,0,10,8],[11,0,12,8],[13,0,14,8],[15,0,16,8]]}
["IME I PREZIME","MATEMATIKA","FIZIKA","HEMIJA","BIOLOGIJA","INFORMATIKA","Prosečna ocena ","Delovodni broj svedočanstva JUN","Delovodni broj svedočanstva AVGUST",null,"JUN","AVGUST"]
["Petrivić Petar",1,4,1,4,2,{"$f":"IF(COUNTIF(B2:F2,1)>0,\"\",AVERAGE(B2:F2))","v":""},{"$f":"IF(G2=\"\",\"\",$K$1)","v":""}]
["Marković Marko ",5,5,4,3,3,{"$f":"IF(COUNTIF(B3:F3,1)>0,\"\",AVERAGE(B3:F3))","v":4},{"$f":"IF(G3=\"\",\"\",$K$1)","v":"JUN"}]
["Jovanović Jovan",5,3,4,3,2,3.4,"JUN"]
["Ivanović Ivan",1,2,4,3,3,"",""]
["Stanković Stanko",2,5,4,3,3,3.4,"JUN"]
["Milanović Milan",3,5,4,3,3,3.6,"JUN",{"$f":"IF(H7=\"\",2,\"\")","v":""}]
[]
[]
["Učenici  koji u JUNU imaju jednu ili dve jedinice idu na popravni i  ne račna im se prosek i ne piše svedočanstvo pa nema ni delovodnog broja u JUNU."]
[]
["Kada učenici u AVGUSTU polože popravni, onda im se jednice zamenjuju pozitivnim ocenama i u koloni automatski računa prosek što je u redu.  "]
[]
["Problem je  što se u tom slučaju delovodni broj opet javalja u JUNU a meni treba da se javi u VAGUSTU. "]
[]
["Potrebna formula koja će OMOGUĆITI da se   delovodni broj umesto u kolonI za JUN pojavljuje u koloni za AVGUST ."]

{"sheet":"IvanC","index":1,"n_rows":11,"n_cols":14,"rows_kept":11,"cut":false,"hidden":false,"merged":[]}
["IME I PREZIME","MATEMATIKA","FIZIKA","HEMIJA","BIOLOGIJA","INFORMATIKA","Prosečna ocena ","Delovodni broj svedočanstva JUN","Delovodni broj svedočanstva AVGUST","pomoćna Avgust","JUN","AVGUST"]
["Petrivić Petar",1,4,1,4,2,{"$f":"IF(COUNTIF(B2:F2,1)>0,\"\",AVERAGE(B2:F2))","v":""},{"$f":"IF(I2=\"\",IF(AND(G2=\"\",I2=\"\"),\"\",K$1),\"\")","v":""},{"$f":"IF(AND(G2<>\"\",J2<>\"\"),L$1,\"\")","v":""}]
["Marković Marko ",5,5,4,3,3,{"$f":"IF(COUNTIF(B3:F3,1)>0,\"\",AVERAGE(B3:F3))","v":4},{"$f":"IF(I3=\"\",IF(AND(G3=\"\",I3=\"\"),\"\",K$1),\"\")","v":"JUN"},{"$f":"IF(AND(G3<>\"\",J3<>\"\"),L$1,\"\")","v":""}]
["Jovanović Jovan",5,3,4,3,2,3.4,{"$f":"IF(I4=\"\",IF(AND(G4=\"\",I4=\"\"),\"\",K$1),\"\")","v":"JUN"},""]
["Ivanović Ivan",1,2,4,3,3,"","",""]
["Stanković Stanko",2,5,4,3,3,3.4,"JUN","",null,null,null,null,"Stupac J je skriven"]
["Milanović Milan",3,5,4,3,3,3.6,"JUN",""]
[]
[]
[]
[null,null,null,null,null,null,null,null,null,null,null,null,"www.ic.ims.hr"]

{"sheet":"Sheet2","index":2,"n_rows":0,"n_cols":0,"rows_kept":0,"cut":false,"hidden":false,"merged":[]}

{"sheet":"Sheet3","index":3,"n_rows":0,"n_cols":0,"rows_kept":0,"cut":false,"hidden":false,"merged":[]}